bitfinex-derivatives/quotes_BTCF0:USTF0_20250411
["timestamp","ask_amount","ask_price","bid_price","bid_amount"]
[1744386892942,0.0001818,82527.0,82526.0,0.248232]
[1744386893236,0.0002218,82527.0,82526.0,0.248232]
[1744386893934,0.0001818,82527.0,82526.0,0.248232]
[1744386894133,0.0002218,82527.0,82526.0,0.248232]
[1744386895543,0.0652,82542.0,82526.0,0.248232]
[1744386895544,0.3608,82544.0,82532.0,0.0606112]
[1744386895730,5.401e-05,82540.0,82539.0,0.121213]
[1744386896042,0.0606046,82542.0,82541.0,0.12121]
[1744386896241,0.1272046,82542.0,82541.0,0.12121]
[1744386896640,5.401e-05,82546.0,82540.0,0.0606057]
[1744386896842,5.401e-05,82546.0,82545.0,0.1212041]
[1744386897040,0.0001818,82550.0,82549.0,0.1211983]
[1744386897540,0.0001818,82550.0,82549.0,0.1869983]
[1744386897745,0.1850186,82550.0,82549.0,0.1869983]
[1744386898241,0.0638218,82550.0,82549.0,0.1869983]
[1744386899141,0.1850186,82550.0,82549.0,0.1869983]
[1744386899446,0.1818099,82544.0,82543.0,0.1212067]
[1744386899647,0.1212144,82538.0,82537.0,0.4820131]
[1744386899839,0.1212144,82538.0,82535.0,0.0606086]
[1744386899840,0.06083874,82538.0,82535.0,0.0606086]
[1744386900147,0.06083994,82536.0,82535.0,0.1818245]
[1744386900336,0.00023124,82536.0,82535.0,0.1818245]
[1744386900537,0.12543124,82536.0,82535.0,0.1818245]
[1744386900934,0.3608,82548.0,82535.0,0.0606086]
[1744386901145,5.401e-05,82556.0,82535.0,0.0606086]
[1744386901146,5.401e-05,82556.0,82547.0,0.3608]
[1744386901348,5.401e-05,82556.0,82549.0,0.1211983]
[1744386901556,0.0001818,82550.0,82549.0,0.1211983]
[1744386901740,0.0002218,82550.0,82549.0,0.1211983]
[1744386902638,0.0002218,82550.0,82549.0,0.13306007]
[1744386902838,0.0002218,82550.0,82549.0,0.00921757]
[1744386903049,0.1212113,82543.0,82542.0,0.1818067]
[1744386903348,0.12565304,82550.0,82549.0,0.1211983]
[1744386903548,0.24685124,82550.0,82549.0,0.1302131]
[1744386903741,0.0625218,82550.0,82549.0,0.1302131]
[1744386904950,0.0624818,82550.0,82549.0,0.1302131]
[1744386905348,0.0625218,82550.0,82549.0,0.1302131]
[1744386906649,0.0002218,82550.0,82549.0,0.1302131]
[1744386907150,0.06705401,82558.0,82557.0,0.1211865]
[1744386907347,0.067,82558.0,82557.0,0.1211865]
[1744386907546,0.005,82562.0,82561.0,0.1211807]
[1744386908345,0.00504,82562.0,82561.0,0.1211807]
[1744386909058,0.1211865,82558.0,82557.0,0.1817769]
[1744386909249,0.0605911,82560.0,82559.0,0.1211836]
[1744386909449,0.07104,82562.0,82561.0,0.1211807]
[1744386909643,0.00504,82562.0,82561.0,0.1211807]
[1744386910155,0.00018168,82570.0,82569.0,0.1211689]
[1744386910353,0.00018168,82570.0,82569.0,0.4819689]
[1744386910354,0.0002801,82570.0,82569.0,0.4819689]
[1744386910653,0.00022168,82570.0,82569.0,0.4819689]
[1744386911245,0.00022168,82570.0,82569.0,0.5439689]
[1744386911446,0.00022168,82570.0,82569.0,0.55581274]
[1744386912955,0.00018168,82570.0,82569.0,0.55581274]
[1744386913252,0.00022168,82570.0,82569.0,0.55581274]
[1744386913455,0.12162032,82570.0,82569.0,0.4819689]
[1744386913641,0.00045292,82570.0,82569.0,0.4819689]
[1744386914048,0.06225292,82570.0,82569.0,0.4819689]
[1744386915055,0.06225292,82570.0,82569.0,0.5493689]
[1744386915256,0.06225292,82570.0,82569.0,0.4819689]
[1744386916153,0.06202168,82570.0,82569.0,0.4819689]
[1744386916353,0.06198168,82570.0,82569.0,0.5465689]
[1744386916561,0.06202168,82570.0,82569.0,0.6121689]
[1744386917358,0.06202168,82570.0,82559.0,0.1211791]
[1744386917359,0.0605855,82568.0,82559.0,0.1211791]
[1744386917545,0.128,82567.0,82561.0,0.0605903]
[1744386917860,0.128,82567.0,82558.0,0.3608]
[1744386917861,0.0605873,82566.0,82565.0,0.0605873]
[1744386918051,0.128,82567.0,82566.0,0.1211733]
[1744386918248,0.2491718,82567.0,82566.0,0.1211733]
[1744386918443,0.12823124,82567.0,82566.0,0.1211733]
[1744386918644,0.0619,82567.0,82566.0,0.1211733]
[1744386919662,0.06194,82567.0,82566.0,0.1211733]
[1744386919958,0.0619,82567.0,82566.0,0.1211733]
[1744386920152,0.06217124,82567.0,82566.0,0.1211733]
[1744386920457,0.0605881,82564.0,82563.0,0.1817644]
[1744386920654,0.06081934,82564.0,82563.0,0.1817644]
[1744386920848,0.1211836,82559.0,82557.0,0.1211856]
[1744386921048,0.12141484,82559.0,82558.0,0.4819851]
[1744386921249,0.24381484,82559.0,82558.0,0.4819851]
[1744386921654,0.24381484,82559.0,82547.0,0.00484569]
[1744386921655,0.1211865,82557.0,82547.0,0.00484569]
[1744386921855,0.1211909,82554.0,82551.0,0.121195]
[1744386922049,0.12142214,82554.0,82553.0,0.12137408]
[1744386922244,0.24282214,82554.0,82553.0,0.12137408]
[1744386922443,0.24282214,82554.0,82553.0,0.00018168]
[1744386923556,0.24282214,82554.0,82553.0,0.12137408]
[1744386924450,0.24282214,82554.0,82553.0,0.10737408]
[1744386925046,0.1211983,82549.0,82548.0,0.1817968]
[1744386925451,0.24682954,82549.0,82548.0,0.1817968]
[1744386927557,0.1211997,82548.0,82547.0,0.01407025]
[1744386927749,0.24813094,82548.0,82547.0,0.13527145]
[1744386927962,0.24813094,82548.0,82547.0,0.01407025]
[1744386930160,0.60893094,82548.0,82547.0,0.00484569]
[1744386932263,0.12144124,82541.0,82540.0,0.00418557]
[1744386932468,0.1212115,82540.0,82539.0,0.1212125]
[1744386932675,0.25354274,82540.0,82539.0,0.1212125]
[1744386932959,0.25354274,82540.0,82534.0,0.1818275]
[1744386932960,0.1212188,82535.0,82534.0,0.1818275]
[1744386933267,0.1212218,82533.0,82532.0,0.1899115]
[1744386933760,0.1874218,82533.0,82532.0,0.1899115]
[1744386933954,0.1319,82533.0,82532.0,0.1899115]
[1744386934158,0.0662,82533.0,82532.0,0.1899115]
[1744386934458,0.1818099,82544.0,82542.0,0.0606037]
[1744386934654,0.1818099,82544.0,82543.0,0.1212057]
[1744386935160,0.18204114,82544.0,82543.0,0.1212057]
[1744386935357,0.0605971,82552.0,82544.0,0.0606027]
[1744386935659,0.12143244,82547.0,82546.0,0.181804]
[1744386935855,0.25323244,82547.0,82546.0,0.181804]
[1744386936657,0.13203124,82547.0,82530.0,0.01229999]
[1744386936859,0.12144704,82538.0,82536.0,0.0606086]
[1744386937054,0.0606058,82540.0,82536.0,0.4214086]
[1744386937269,0.1212133,82539.0,82538.0,0.1818201]
[1744386937564,0.1818155,82542.0,82540.0,0.0606057]
[1744386937863,0.1818155,82542.0,82541.0,0.12121]
[1744386938460,0.1818231,82538.0,82537.0,0.1212124]
[1744386938653,0.1212159,82537.0,82536.0,0.4820159]
[1744386939859,0.1212159,82537.0,82536.0,0.4600159]
[1744386940263,0.1212559,82537.0,82536.0,0.4600159]
[1744386940766,4e-05,82537.0,82536.0,0.4600159]
[1744386943375,0.1212559,82537.0,82536.0,0.4600159]
[1744386946668,0.0606095,82535.0,82532.0,0.00908122]
[1744386946875,0.1212232,82532.0,82531.0,0.00018168]
[1744386947178,0.12145444,82532.0,82531.0,0.00018168]
[1744386947674,0.1212276,82529.0,82528.0,0.09941028]
[1744386948476,0.0606131,82530.0,82529.0,0.1212276]
[1744386950182,0.0606131,82530.0,82529.0,0.13039485]
[1744386951183,0.1247131,82530.0,82529.0,0.13039485]
[1744386951382,0.1247131,82530.0,82529.0,0.10929485]
[1744386951974,0.1212365,82523.0,82522.0,0.064]
[1744386952175,0.1212379,82522.0,82517.0,0.01181597]
[1744386952377,0.18226914,82522.0,82513.0,0.0649]
[1744386952569,0.18226914,82522.0,82511.0,0.00181792]
[1744386952775,0.54306914,82522.0,82509.0,0.21345746]
[1744386952976,0.54306914,82522.0,82509.0,0.33471306]
[1744386953178,0.54306914,82522.0,82509.0,0.21345746]
[1744386953480,0.54306914,82522.0,82512.0,0.00921785]
[1744386953679,0.54306914,82522.0,82512.0,0.34392761]
[1744386953875,0.54306914,82522.0,82514.0,0.1212494]
[1744386954075,0.54306914,82522.0,82512.0,0.22267531]
[1744386954278,0.60606914,82522.0,82512.0,0.34392721]
[1744386954474,0.60606914,82522.0,82512.0,0.22267531]
[1744386954682,0.60606914,82522.0,82512.0,0.21345746]
[1744386955080,0.60606914,82522.0,82514.0,0.1212494]
[1744386955384,0.60606914,82522.0,82512.0,0.21345746]
[1744386955585,0.1212511,82513.0,82512.0,0.33470866]
[1744386955788,0.48228234,82513.0,82512.0,0.31270866]
[1744386956092,0.60718234,82513.0,82512.0,0.31270866]
[1744386956495,0.66678234,82513.0,82512.0,0.19145746]
[1744386956785,0.66678234,82513.0,82509.0,0.13037208]
[1744386956786,0.1212556,82510.0,82509.0,0.13037208]
[1744386956987,0.12148684,82510.0,82509.0,0.121257]
[1744386957192,0.0606285,82509.0,82505.0,4e-05]
[1744386957387,0.0606315,82505.0,82503.0,0.0592]
[1744386957688,0.1212732,82498.0,82497.0,0.12165558]
[1744386957888,0.1212732,82498.0,82495.0,0.00484875]
[1744386957889,0.1212761,82496.0,82495.0,0.00484875]
[1744386958091,0.12150734,82496.0,82495.0,0.00484875]
[1744386958283,0.18070734,82496.0,82495.0,0.00484875]
[1744386958479,0.30620734,82496.0,82495.0,0.00484875]
[1744386958684,0.30620734,82496.0,82495.0,0.00488875]
[1744386959884,0.1821761,82496.0,82495.0,0.12616635]
[1744386960584,0.1821761,82496.0,82495.0,0.25226635]
[1744386960798,0.1821761,82496.0,82495.0,0.13098875]
[1744386961389,0.2469761,82496.0,82495.0,0.13098875]
[1744386962212,0.24720734,82496.0,82495.0,0.00488875]
[1744386962692,0.24720734,82496.0,82495.0,0.06528875]
[1744386963404,0.24720734,82496.0,82495.0,0.00488875]
[1744386963995,0.24720734,82496.0,82484.0,0.00092262]
[1744386963996,0.0606447,82487.0,82484.0,0.00092262]
[1744386964295,0.12152354,82485.0,82484.0,0.00092262]
[1744386964494,0.1213144,82470.0,82469.0,0.37787229]
[1744386964794,0.1213144,82470.0,82469.0,0.36609157]
[1744386965200,0.060647,82484.0,82469.0,0.36609157]
[1744386965394,0.0604,82475.0,82469.0,0.42674907]
[1744386965599,0.1213101,82473.0,82471.0,0.1213119]
[1744386965910,0.0604,82472.0,82471.0,0.13031948]
[1744386966108,0.1817114,82472.0,82471.0,0.13031948]
[1744386966609,0.1817114,82472.0,82471.0,0.00900758]
[1744386966905,0.0604,82472.0,82471.0,0.1213129]
[1744386968009,0.1213144,82470.0,82469.0,0.36565028]
[1744386968209,0.1213144,82470.0,82469.0,0.49590391]
[1744386968401,0.0633,82470.0,82469.0,0.49590391]
[1744386968805,0.0606475,82484.0,82474.0,0.0606542]
[1744386969111,0.1846041,82477.0,82476.0,0.1592582]
[1744386969312,0.0633,82477.0,82476.0,0.1592582]
[1744386969905,0.4820916,82486.0,82484.0,0.0606468]
[1744386970118,0.12152354,82485.0,82484.0,0.1819406]
[1744386970613,0.1212923,82485.0,82484.0,0.1819406]
[1744386970809,0.1212923,82485.0,82484.0,0.0606468]
[1744386971010,0.1213038,82479.0,82478.0,0.1212984]
[1744386971205,0.1213038,82479.0,82478.0,0.1819487]
[1744386971401,0.1213038,82479.0,82478.0,0.1819887]
[1744386971402,0.2400038,82479.0,82478.0,0.1819887]
[1744386971617,0.2400038,82479.0,82478.0,4e-05]
[1744386971911,0.0591,82479.0,82478.0,0.1213426]
[1744386972211,1.5,82548.0,82485.0,0.1212923]
[1744386972212,0.3608,82486.0,82485.0,0.1212923]
[1744386972604,0.4820908,82486.0,82485.0,0.1212923]
[1744386973310,0.0596,82491.0,82485.0,0.0606461]
[1744386973311,0.0606439,82489.0,82485.0,0.0606461]
[1744386973511,0.1856908,82486.0,82485.0,0.1819384]
[1744386974103,0.0644,82486.0,82485.0,0.1819384]
[1744386975510,0.1856908,82486.0,82485.0,0.1819384]
[1744386976510,0.0606484,82482.0,82478.0,0.36084]
[1744386976713,0.242651,82481.0,82480.0,0.0606497]
[1744386977103,0.305251,82481.0,82480.0,0.0606497]
[1744386977306,0.1839499,82481.0,82480.0,0.0606497]
[1744386978918,0.0607,82481.0,82480.0,0.0606497]
[1744386979217,0.1212784,82495.0,82491.0,0.1212835]
[1744386979418,0.12146089,82494.0,82491.0,0.1212835]
[1744386979619,0.00018179,82494.0,82491.0,0.1212835]
[1744386980008,0.1212808,82493.0,82491.0,0.1212835]
[1744386980516,0.00018179,82494.0,82491.0,0.1212835]
[1744386980715,0.06418179,82494.0,82491.0,0.1212835]
[1744386981216,0.06418179,82494.0,82493.0,0.1212805]
[1744386981419,0.3608,82508.0,82491.0,0.0595]
[1744386981718,0.3608,82508.0,82507.0,0.12126]
[1744386982114,0.42334,82508.0,82507.0,0.18076]
[1744386982522,4e-05,82508.0,82507.0,0.18076]
[1744386983509,0.005,82510.0,82509.0,0.121257]
[1744386983918,0.005,82510.0,82509.0,0.185257]
[1744386984318,0.005,82510.0,82509.0,0.244957]
[1744386984625,0.005,82510.0,82509.0,0.306357]
[1744386984815,9.842e-05,82527.0,82526.0,0.121232]
[1744386985018,0.1262174,82536.0,82535.0,0.1212188]
[1744386985522,0.18514864,82536.0,82535.0,0.1212188]
[1744386985719,0.18518864,82536.0,82535.0,0.1212188]
[1744386985918,0.06397124,82536.0,82535.0,0.1212188]
[1744386986419,0.18518864,82536.0,82535.0,0.2445188]
[1744386986621,0.18518864,82536.0,82535.0,0.1212188]
[1744386988025,0.1212203,82534.0,82533.0,0.1826205]
[1744386988218,0.12145154,82534.0,82533.0,0.1826205]
[1744386988422,0.1799203,82534.0,82533.0,0.1606205]
[1744386988728,0.1799203,82534.0,82533.0,0.1212205]
[1744386990026,0.1799203,82534.0,82533.0,0.13351236]
[1744386990627,0.0587,82534.0,82533.0,0.13351236]
[1744386991419,0.0587,82534.0,82533.0,0.25471236]
[1744386991926,0.0587,82534.0,82533.0,0.14244415]
[1744386992122,0.18015154,82534.0,82533.0,0.00893179]
[1744386992427,0.36117334,82534.0,82533.0,0.1212218]
[1744386993225,0.1212276,82529.0,82528.0,0.1212272]
[1744386993623,0.1843276,82529.0,82528.0,0.1212272]
[1744386994427,0.1843276,82529.0,82528.0,0.1303236]
[1744386995830,0.18455884,82529.0,82528.0,0.1303236]
[1744386996227,0.18455884,82529.0,82528.0,0.1083236]
[1744386996929,0.18455884,82529.0,82528.0,0.0090964]
[1744386997134,0.24517264,82529.0,82528.0,0.1212291]
[1744386997319,0.24517264,82529.0,82528.0,0.13011901]
[1744386997525,0.0631,82529.0,82528.0,0.13011901]
[1744386998135,0.0631,82529.0,82528.0,0.25781901]
[1744386998335,0.1212291,82528.0,82527.0,0.00018179]
[1744386998532,0.1212467,82516.0,82515.0,0.3608]
[1744386998732,0.12147794,82516.0,82515.0,0.4820482]
[1744386999730,0.06313124,82516.0,82515.0,0.1212482]
[1744386999933,0.1818782,82513.0,82512.0,0.1212525]
[1744387000132,0.06085684,82513.0,82512.0,0.1212525]
[1744387000631,0.12375684,82513.0,82512.0,0.1212925]
[1744387000831,0.48455684,82513.0,82512.0,4e-05]
[1744387001041,0.1212585,82508.0,82507.0,0.12143869]
[1744387001240,0.12148974,82508.0,82507.0,0.12143869]
[1744387001444,0.24398974,82508.0,82507.0,0.12143869]
[1744387001939,0.24398974,82508.0,82507.0,0.13047047]
[1744387002133,0.24398974,82508.0,82507.0,0.00018179]
[1744387002337,0.24406974,82508.0,82507.0,0.00044272]
[1744387002535,0.24406974,82508.0,82507.0,0.00048272]
[1744387003442,0.1212761,82496.0,82495.0,0.00484875]
[1744387003631,0.12150734,82496.0,82495.0,0.00484875]
[1744387003830,0.12150884,82495.0,82494.0,0.10412685]
[1744387004043,0.1819223,82493.0,82492.0,0.1212817]
[1744387004233,0.18215354,82493.0,82492.0,0.1212817]
[1744387004630,0.24605354,82493.0,82492.0,0.1212817]
[1744387004831,0.24605354,82493.0,82492.0,0.13041352]
[1744387005236,0.06413124,82493.0,82492.0,0.13041352]
[1744387005441,0.0639,82493.0,82492.0,0.13041352]
[1744387005636,0.0602,82494.0,82492.0,0.13041352]
[1744387005637,0.0602,82494.0,82493.0,0.1212805]
[1744387005940,0.0602,82494.0,82493.0,0.2432805]
[1744387006534,0.0639,82507.0,82493.0,0.2432805]
[1744387006535,0.0639,82507.0,82500.0,0.1212703]
[1744387006737,0.0648,82505.0,82500.0,0.1212703]
[1744387006932,0.0648,82505.0,82500.0,0.2418703]
[1744387007333,0.00012,82503.0,82500.0,0.2418703]
[1744387008344,0.00012,82503.0,82502.0,0.1212673]
[1744387008843,0.00012,82503.0,82502.0,0.2418673]
[1744387009638,0.00012,82503.0,82502.0,0.6026673]
[1744387009839,0.0648,82508.0,82502.0,0.6026673]
[1744387009840,0.005,82510.0,82509.0,0.121257]
[1744387010040,0.00018179,82511.0,82510.0,0.1212556]
[1744387010239,0.00018179,82511.0,82510.0,0.2481556]
[1744387010833,0.00022179,82511.0,82510.0,0.2481556]
[1744387011037,0.00018179,82511.0,82510.0,0.2481556]
[1744387011241,0.00022179,82511.0,82510.0,0.2481556]
[1744387013438,0.3608,82551.0,82535.0,0.1212188]
[1744387013639,7.291e-05,82542.0,82535.0,0.4820188]
[1744387013947,0.1212107,82541.0,82535.0,0.4820188]
[1744387014144,0.00504,82536.0,82535.0,0.60983198]
[1744387014447,0.00504,82536.0,82535.0,0.62218236]
[1744387014650,0.00018179,82544.0,82543.0,0.1212071]
[1744387014942,0.061,82559.0,82544.0,0.0606023]
[1744387015146,0.061,82559.0,82558.0,0.1211851]
[1744387015540,0.005,82562.0,82561.0,0.1211807]
[1744387016034,0.00504,82562.0,82561.0,0.1211807]
[1744387016239,0.00504,82562.0,82561.0,0.13331324]
[1744387017539,0.005,82562.0,82561.0,0.13331324]
[1744387017740,0.00504,82562.0,82561.0,0.13331324]
[1744387020241,0.00018168,82570.0,82569.0,0.1211689]
[1744387020441,0.0616,82572.0,82571.0,0.121166]
[1744387020846,0.0612,82583.0,82582.0,0.1211498]
[1744387021144,0.06143124,82583.0,82582.0,0.1211498]
[1744387021650,0.18257964,82583.0,82582.0,0.0991498]
[1744387022050,0.12200614,82583.0,82577.0,0.3608]
[1744387022250,0.1211601,82575.0,82570.0,0.1911211]
[1744387022436,0.12139134,82575.0,82574.0,0.12134328]
[1744387023048,0.00023124,82575.0,82574.0,0.12134328]
[1744387023747,0.3608,82581.0,82574.0,0.00928746]
[1744387023952,0.1205,82580.0,82579.0,0.1211542]
[1744387024252,0.0609,82580.0,82579.0,0.1211542]
[1744387024842,0.06094,82580.0,82579.0,0.1211542]
[1744387025248,0.0655709,82588.0,82587.0,0.1211425]
[1744387025249,0.005,82588.0,82587.0,0.1211425]
[1744387025445,0.005,82588.0,82587.0,0.4819425]
[1744387025647,0.00504,82588.0,82587.0,0.4819425]
[1744387026043,0.00504,82588.0,82587.0,0.5453425]
[1744387026452,0.005,82588.0,82587.0,0.5453425]
[1744387027140,0.00504,82588.0,82587.0,0.5453425]
[1744387027347,0.005,82588.0,82587.0,0.5453425]
[1744387027547,0.005,82588.0,82587.0,0.55723553]
[1744387027746,0.1,82600.0,82593.0,0.0605664]
[1744387027945,0.1253,82599.0,82598.0,0.1211264]
[1744387028145,0.1253,82599.0,82598.0,0.4819264]
[1744387028349,0.12553124,82599.0,82598.0,0.4819264]
[1744387028859,0.1,82600.0,82599.0,0.1211249]
[1744387029044,0.10023124,82600.0,82599.0,0.1211249]
[1744387029244,0.00018168,82607.0,82606.0,0.1211146]
[1744387029447,0.005,82614.0,82613.0,0.1211044]
[1744387030955,0.00504,82614.0,82613.0,0.1211044]
[1744387031858,0.005,82614.0,82613.0,0.1211044]
[1744387032547,0.005,82614.0,82613.0,0.13295953]
[1744387034945,0.00523124,82614.0,82606.0,0.3608]
[1744387035150,0.00023124,82607.0,82606.0,0.5424713]
[1744387035354,0.00023124,82610.0,82606.0,0.3608]
[1744387035558,0.1217,82613.0,82612.0,0.1211058]
[1744387035944,5.401e-05,82623.0,82618.0,0.0605481]
[1744387036145,0.0618,82621.0,82620.0,0.1210941]
[1744387036450,0.0618,82621.0,82619.0,0.0605478]
[1744387036451,0.3658,82640.0,82635.0,0.1210721]
[1744387036752,5.401e-05,82633.0,82632.0,0.1816143]
[1744387036955,5.401e-05,82633.0,82632.0,0.1596143]
[1744387037255,0.3608,82660.0,82641.0,0.0605316]
[1744387037456,0.00023124,82648.0,82647.0,0.1815817]
[1744387037859,0.00023124,82648.0,82646.0,0.0605278]
[1744387038059,0.00023124,82647.0,82646.0,0.0605278]
[1744387038250,0.00023124,82647.0,82643.0,0.3608]
[1744387038251,0.121059,82644.0,82643.0,0.3608]
[1744387038451,0.12129024,82644.0,82643.0,0.3608]
[1744387038948,0.1210604,82643.0,82642.0,0.00018157]
[1744387039153,0.17839164,82643.0,82642.0,0.00018157]
[1744387040056,0.53919164,82643.0,82642.0,0.00018157]
[1744387040457,0.1210839,82627.0,82626.0,0.09388]
[1744387040662,0.12131654,82626.0,82625.0,0.00484112]
[1744387040853,0.23731654,82626.0,82625.0,0.00484112]
[1744387042854,0.23735654,82626.0,82625.0,0.00484112]
[1744387044764,0.23735654,82626.0,82625.0,0.00084112]
[1744387047359,0.59815654,82626.0,82625.0,0.00084112]
[1744387047761,0.121097,82618.0,82617.0,0.00018157]
[1744387047963,0.12132824,82618.0,82617.0,0.00018157]
[1744387048162,0.23942824,82618.0,82617.0,0.00018157]
[1744387049364,0.60022824,82618.0,82617.0,0.00018157]
[1744387052164,0.1211102,82609.0,82608.0,4e-05]
[1744387052366,0.48214144,82609.0,82608.0,4e-05]
[1744387052664,0.1211234,82600.0,82597.0,5.4e-05]
[1744387052864,0.12135464,82600.0,82590.0,0.28416255]
[1744387053065,0.12135464,82600.0,82599.0,0.00488264]
[1744387053454,0.12163124,82600.0,82599.0,0.00484264]
[1744387053655,0.24275464,82600.0,82599.0,0.00484264]
[1744387053865,0.24279464,82600.0,82599.0,0.00484264]
[1744387054365,0.24279464,82600.0,82599.0,0.06478264]
[1744387057060,0.06105807,82600.0,82599.0,0.06478264]
[1744387057867,0.06105807,82600.0,82599.0,0.00484264]
[1744387058255,0.06105807,82600.0,82599.0,0.00488264]
[1744387058455,0.06101807,82600.0,82599.0,0.00488264]
[1744387058656,0.06105807,82600.0,82599.0,0.00488264]
[1744387060461,0.12245807,82600.0,82599.0,0.00488264]
[1744387061064,0.06105807,82600.0,82599.0,0.00488264]
[1744387062565,0.06101807,82600.0,82599.0,0.00488264]
[1744387062756,0.06105807,82600.0,82599.0,0.00488264]
[1744387066873,0.1211352,82592.0,82591.0,7e-08]
[1744387067171,0.121144,82586.0,82585.0,7.29e-05]
[1744387067358,0.121144,82586.0,82573.0,0.00484417]
[1744387067359,0.1211616,82574.0,82573.0,0.00484417]
[1744387067559,0.4819616,82574.0,82571.0,0.28416255]
[1744387067869,0.1211748,82565.0,82564.0,0.35562901]
[1744387068063,0.4819748,82565.0,82564.0,0.35562901]
[1744387068266,0.5949748,82565.0,82564.0,0.35562901]
[1744387068770,0.5949748,82565.0,82564.0,0.27673471]
[1744387068962,0.1211792,82562.0,82557.0,0.42570126]
[1744387069161,0.4819792,82562.0,82561.0,1e-08]
[1744387069472,0.1211968,82550.0,82549.0,0.47218629]
[1744387069665,0.5895168,82550.0,82549.0,0.43458299]
[1744387069859,0.73013497,82550.0,82543.0,0.56958046]
[1744387070064,0.1212056,82544.0,82543.0,0.11574636]
[1744387070276,0.1212071,82543.0,82542.0,0.13905211]
[1744387070470,0.1212306,82527.0,82526.0,0.0586]
[1744387071067,0.1776306,82527.0,82526.0,0.0586]
[1744387071865,0.121235,82524.0,82523.0,0.35710691]
[1744387072075,0.482035,82524.0,82523.0,0.35710691]
[1744387072571,0.482035,82524.0,82523.0,0.41524691]
[1744387072970,0.482035,82524.0,82523.0,0.41520691]
[1744387073165,0.482035,82524.0,82523.0,0.05814]
[1744387074166,0.482035,82524.0,82523.0,0.1793765]
[1744387074366,0.3608,82524.0,82523.0,0.1793765]
[1744387074567,0.482035,82524.0,82523.0,0.1793765]
[1744387074963,0.3608,82524.0,82523.0,0.1793765]
[1744387075169,0.482035,82524.0,82523.0,0.1793765]
[1744387075472,0.482035,82524.0,82523.0,0.05814]
[1744387075662,0.482035,82524.0,82523.0,0.1793765]
[1744387076065,0.482035,82524.0,82523.0,0.05814]
[1744387076983,0.121235,82524.0,82523.0,0.05814]
[1744387077468,0.121235,82524.0,82523.0,0.1793765]
[1744387078866,0.00018168,82532.0,82531.0,0.1212247]
[1744387079574,0.00018168,82532.0,82530.0,0.11]
[1744387079773,0.00018168,82532.0,82531.0,0.1212247]
[1744387079969,0.1212247,82531.0,82530.0,0.11]
[1744387080166,0.1212247,82531.0,82530.0,0.2312262]
[1744387080369,0.1212247,82531.0,82530.0,0.2312662]
[1744387081064,0.00018168,82532.0,82531.0,0.1212247]
[1744387081467,0.14412721,82537.0,82531.0,0.3702]
[1744387081667,0.21688866,82558.0,82546.0,0.1212027]
[1744387082272,0.21688866,82558.0,82546.0,0.38392713]
[1744387082479,0.21688866,82558.0,82557.0,0.1211865]
[1744387083777,0.10775816,82558.0,82557.0,0.1211865]
[1744387084777,0.10775816,82558.0,82557.0,0.18675093]
[1744387086271,0.22894326,82558.0,82557.0,0.00926443]
[1744387086582,0.22894326,82558.0,82557.0,0.1212265]
[1744387086884,0.22894326,82558.0,82557.0,0.1773265]
[1744387087181,0.10775816,82558.0,82557.0,0.1773265]
[1744387087385,0.10775816,82558.0,82557.0,0.1772865]
[1744387087586,0.10775816,82558.0,82557.0,0.2361865]
[1744387087978,0.10775816,82558.0,82557.0,0.21463872]
[1744387088178,0.005,82562.0,82561.0,0.1211807]
[1744387089175,0.005,82562.0,82559.0,0.1817734]
[1744387089381,0.1211807,82561.0,82560.0,0.2327811]
[1744387089580,0.1798807,82561.0,82560.0,0.2327811]
[1744387089783,0.1798807,82561.0,82560.0,0.1116]
[1744387089978,0.2395807,82561.0,82560.0,0.057]
[1744387090378,0.2395807,82561.0,82560.0,0.05704]
[1744387090573,0.2395807,82561.0,82560.0,0.057]
[1744387090782,0.2395807,82561.0,82560.0,0.05704]
[1744387091085,0.2395807,82561.0,82560.0,0.1782221]
[1744387091885,0.2395807,82561.0,82560.0,0.05704]
[1744387092277,0.2395807,82561.0,82560.0,0.1782221]
[1744387092278,0.1211807,82561.0,82560.0,0.1782221]
[1744387092586,0.22893886,82561.0,82560.0,0.2356221]
[1744387092777,0.1817769,82559.0,82558.0,0.1211847]
[1744387092974,0.1817769,82559.0,82557.0,0.00045222]
[1744387092975,0.10775816,82561.0,82560.0,0.1211821]
[1744387093777,0.0605911,82560.0,82559.0,0.181775]
[1744387093979,0.0554,82560.0,82559.0,0.181775]
[1744387094286,0.1151,82560.0,82559.0,0.181775]
[1744387094477,0.2362821,82560.0,82559.0,0.181815]
[1744387094678,0.2362821,82560.0,82559.0,4e-05]
[1744387094884,0.1211851,82558.0,82557.0,0.00045222]
[1744387095386,0.2391851,82558.0,82557.0,0.00045222]
[1744387095582,0.2391851,82558.0,82557.0,0.00049222]
[1744387095791,0.1211953,82551.0,82550.0,0.10068832]
[1744387096189,0.1211968,82550.0,82549.0,0.0605991]
[1744387096689,0.2391968,82550.0,82549.0,0.0605991]
[1744387097093,0.1211997,82548.0,82547.0,0.0581]
[1744387097589,0.2391997,82548.0,82547.0,0.1793012]
[1744387098292,0.1212071,82543.0,82542.0,0.01242938]
[1744387098489,0.121213,82539.0,82538.0,0.12139608]
[1744387098683,0.0586,82542.0,82541.0,0.12121]
[1744387098991,0.1798085,82542.0,82541.0,0.12121]
[1744387099190,0.0586,82542.0,82541.0,0.17631]
[1744387099387,0.0586,82542.0,82541.0,0.23071]
[1744387100884,0.00018168,82547.0,82546.0,0.1212027]
[1744387102185,0.23368288,82547.0,82546.0,0.1777027]
[1744387102380,0.23368288,82547.0,82546.0,0.1212027]
[1744387103294,0.00018168,82547.0,82546.0,0.1212027]
[1744387103501,0.00018168,82547.0,82546.0,0.2361027]
[1744387103990,0.00018168,82547.0,82546.0,0.1777027]
[1744387104387,0.00018168,82547.0,82546.0,0.1777427]
[1744387104788,0.00018168,82547.0,82546.0,0.5385427]
[1744387104984,0.00018168,82547.0,82546.0,0.5965427]
[1744387105184,0.21688866,82555.0,82554.0,0.1211909]
[1744387105699,0.1212012,82547.0,82546.0,4e-05]
[1744387105997,0.1212012,82547.0,82546.0,0.1212027]
[1744387106194,0.1212012,82547.0,82546.0,0.1212427]
[1744387106499,0.2325012,82547.0,82546.0,0.1212427]
[1744387107196,0.2325012,82547.0,82546.0,4e-05]
[1744387107589,0.2325012,82547.0,82546.0,0.1212427]
[1744387108195,0.2325012,82547.0,82546.0,4e-05]
[1744387108406,0.12121,82541.0,82540.0,0.36424]
[1744387108605,0.48201,82541.0,82540.0,0.36424]
[1744387108903,0.1153,82541.0,82540.0,0.4854515]
[1744387109607,0.1153,82541.0,82540.0,0.5445515]
[1744387110005,0.1153,82541.0,82540.0,0.6033515]
[1744387110208,0.1153,82541.0,82540.0,0.5445515]
[1744387110905,0.23651,82541.0,82540.0,0.1803115]
[1744387111607,0.121213,82539.0,82538.0,0.00905817]